bitfinex-derivatives/quotes_SOLF0:USTF0_20251023
["timestamp","ask_amount","ask_price","bid_price","bid_amount"]
[1761227420425,2.79,191.18,191.12,4.63497756]
[1761227420621,2.79,191.18,191.09,4.7088]
[1761227420930,2.79,191.18,191.1,4.63526586]
[1761227421120,2.79,191.18,191.11,4.63526586]
[1761227421316,2.79,191.18,191.12,4.63526586]
[1761227421512,2.79,191.18,191.08,2.85]
[1761227421725,2.79,191.18,191.09,7.48480872]
[1761227421926,2.79,191.18,191.1,4.63480872]
[1761227422125,2.79,191.18,191.09,2.85]
[1761227422126,2.79,191.18,191.11,4.63480872]
[1761227422327,2.79,191.18,191.12,4.63480872]
[1761227422530,2.79,191.18,191.09,2.85]
[1761227422828,2.79,191.18,191.1,4.63447746]
[1761227423126,2.79,191.18,191.11,4.63447746]
[1761227423325,2.79,191.18,191.12,4.63447746]
[1761227423630,45.62,191.19,191.1,7.5585]
[1761227423925,45.62,191.19,191.05,4.74609302]
[1761227423926,10.22669493,191.22,191.11,4.63386932]
[1761227424129,10.22669493,191.22,191.04,4.74609302]
[1761227424130,2.79,191.27,191.14,2.85]
[1761227424338,2.79,191.27,191.16,2.85]
[1761227424524,2.79,191.27,191.17,7.48386932]
[1761227424826,2.79,191.27,191.18,4.63386932]
[1761227425027,2.79,191.27,191.17,2.85]
[1761227425215,2.79,191.27,191.18,4.62750104]
[1761227425416,2.79,191.27,191.17,7.5568]
[1761227425615,2.79,191.27,191.18,4.62579744]
[1761227425829,2.8,191.26,191.15,4.7073]
[1761227426125,2.8,191.26,191.13,2.71]
[1761227426126,2.8,191.24,191.13,2.71]
[1761227426318,2.8,191.24,191.15,2.71]
[1761227426524,45.54,191.23,191.16,4.62814233]
[1761227426725,45.54,191.23,191.15,2.71]
[1761227426924,45.54,191.23,191.16,4.62662725]
[1761227427124,48.34,191.23,191.15,2.71]
[1761227427325,48.34,191.23,191.1,2.71]
[1761227427629,2.8,191.22,191.11,7.33690157]
[1761227427926,2.8,191.22,191.12,4.62690157]
[1761227428128,2.8,191.22,191.13,4.62608777]
[1761227428330,2.8,191.22,191.11,2.71]
[1761227428531,2.8,191.22,191.12,7.33539977]
[1761227428831,2.8,191.22,191.14,4.7076]
[1761227429529,2.8,191.22,191.12,7.4181]
[1761227429725,2.8,191.22,191.13,4.62300062]
[1761227429919,2.8,191.22,191.14,4.62300062]
[1761227430125,2.8,191.22,191.12,7.4181]
[1761227430324,2.8,191.22,191.13,4.62318701]
[1761227430527,2.8,191.22,191.12,7.4181]
[1761227430718,2.79,191.21,191.12,2.71]
[1761227430925,2.79,191.2,191.1,4.7086]
[1761227431119,2.79,191.2,191.11,4.62561492]
[1761227431331,2.79,191.2,191.1,4.7086]
[1761227431529,2.79,191.2,191.11,4.62667601]
[1761227431730,2.79,191.2,191.1,4.7086]
[1761227431931,2.79,191.2,191.11,4.62671028]
[1761227432133,2.79,191.2,191.1,4.7086]
[1761227432333,2.79,191.2,191.11,4.62674858]
[1761227432627,2.79,191.2,191.1,4.7086]
[1761227432934,2.79,191.2,191.11,4.62675072]
[1761227433134,2.79,191.2,191.1,4.7086]
[1761227433435,2.79,191.2,191.11,4.62672831]
[1761227433735,2.79,191.2,191.1,4.7086]
[1761227433938,2.79,191.2,191.11,12.11908275]
[1761227434229,2.79,191.2,191.12,2.77]
[1761227434435,45.54,191.23,191.14,2.77]
[1761227436035,45.54,191.23,191.14,7.4775]
[1761227436330,45.54,191.23,191.15,2.77]
[1761227436730,45.54,191.23,191.16,4.63817941]
[1761227436929,45.54,191.23,191.16,2.77]
[1761227437329,2.79,191.29,191.18,2.77]
[1761227437533,48.31,191.28,191.19,4.63905428]
[1761227437732,48.31,191.28,191.18,2.77]
[1761227437936,48.31,191.28,191.19,4.63498993]
[1761227438240,48.31,191.28,191.18,2.77]
[1761227438533,45.52,191.28,191.2,2.77]
[1761227438737,45.52,191.28,191.21,7.40466173]
[1761227438938,45.52,191.28,191.22,7.4755]
[1761227439129,45.52,191.28,191.22,2.77]
[1761227439325,153.45,191.32,191.22,2.77]
[1761227439538,45.5,191.31,191.22,2.77]
[1761227439737,45.5,191.31,191.23,4.7053]
[1761227439925,45.5,191.31,191.22,2.77]
[1761227440130,45.5,191.31,191.24,2.77]
[1761227440331,45.5,191.31,191.29,2.77]
[1761227442432,45.5,191.31,191.3,2.77]
[1761227442626,45.5,191.31,191.28,7.4741]
[1761227442836,45.5,191.31,191.28,2.77]
[1761227443241,45.5,191.31,191.24,2.77]
[1761227443538,45.5,191.31,191.25,4.62415558]
[1761227443733,45.5,191.31,191.24,2.77]
[1761227443930,45.5,191.31,191.25,4.6253952]
[1761227444134,2.79,191.34,191.24,2.77]
[1761227444333,2.79,191.32,191.25,4.62441833]
[1761227444640,2.79,191.32,191.26,4.62441833]
[1761227444934,2.79,191.32,191.23,2.77]
[1761227445141,2.79,191.32,191.24,4.62413003]
[1761227445339,45.48,191.33,191.25,7.39413003]
[1761227445536,2.79,191.32,191.26,4.62413003]
[1761227445741,2.79,191.32,191.21,7.4759]
[1761227446039,2.79,191.32,191.22,4.62333845]
[1761227446236,2.79,191.32,191.23,4.62333845]
[1761227446438,2.79,191.32,191.24,4.62333845]
[1761227446739,2.79,191.32,191.21,7.4759]
[1761227446935,2.79,191.32,191.22,4.62269347]
[1761227447128,2.79,191.32,191.17,2.77]
[1761227447440,2.79,191.32,191.19,2.77]
[1761227447629,2.79,191.32,191.2,7.39380378]
[1761227447833,2.79,191.32,191.21,4.62380378]
[1761227448035,2.79,191.32,191.22,4.62380378]
[1761227448241,2.79,191.32,191.2,2.77]
[1761227448440,2.79,191.32,191.21,4.62462496]
[1761227448636,2.79,191.32,191.22,4.62462496]
[1761227448837,2.79,191.32,191.23,4.62462496]
[1761227449038,2.79,191.32,191.21,4.7057]
[1761227449238,2.79,191.32,191.22,4.6241571]
[1761227449538,2.79,191.32,191.23,4.6241571]
[1761227449737,2.79,191.32,191.22,2.77]
[1761227449938,2.79,191.32,191.23,4.62474582]
[1761227450241,2.79,191.32,191.22,7.4754]
[1761227450441,2.79,191.32,191.23,4.62528931]
[1761227450641,2.79,191.32,191.22,2.77]
[1761227450842,2.79,191.32,191.23,4.62500472]
[1761227451042,2.79,191.32,191.23,4.7052]
[1761227451443,2.79,191.32,191.24,4.62658555]
[1761227451644,2.79,191.32,191.23,4.7052]
[1761227451844,2.79,191.32,191.24,4.62590857]
[1761227452040,2.79,191.32,191.23,4.7052]
[1761227452243,2.79,191.38,191.26,2.77]
[1761227452448,45.46,191.37,191.26,2.77]
[1761227452745,45.46,191.42,191.35,2.77]
[1761227452943,48.25,191.42,191.34,4.7025]
[1761227453848,2.79,191.41,191.26,2.77]
[1761227454043,2.79,191.41,191.28,2.77]
[1761227454242,2.79,191.41,191.3,2.77]
[1761227454434,2.79,191.41,191.31,4.62130521]
[1761227454641,2.79,191.41,191.32,4.62130521]
[1761227454839,2.79,191.41,191.33,4.62130521]
[1761227455145,2.79,191.41,191.31,7.4733]
[1761227455342,2.79,191.41,191.32,4.61805025]
[1761227455540,2.79,191.41,191.31,7.4733]
[1761227455744,2.79,191.41,191.33,4.703]
[1761227457339,2.79,191.41,191.33,7.473]
[1761227457735,2.79,191.41,191.33,2.77]
[1761227457941,2.79,191.41,191.34,4.6097925]
[1761227458142,2.79,191.41,191.33,2.77]
[1761227458342,2.79,191.41,191.34,4.6097925]
[1761227458645,2.79,191.41,191.33,2.77]
[1761227458842,2.79,191.41,191.34,4.6078928]
[1761227459040,2.58,191.46,191.36,2.63]
[1761227459237,45.42,191.45,191.38,2.63]
[1761227459641,45.42,191.45,191.41,4.701]
[1761227459844,45.42,191.45,191.29,9.23080096]
[1761227459845,45.42,191.45,191.42,2.63]
[1761227460553,45.42,191.45,191.43,2.63]
[1761227461237,45.42,191.45,191.36,2.63]
[1761227461441,45.42,191.45,191.37,7.22822097]
[1761227461648,45.42,191.45,191.38,4.59822097]
[1761227461849,2.58,191.44,191.37,2.63]
[1761227462050,2.58,191.44,191.3,2.63]
[1761227462347,2.58,191.44,191.32,2.63]
[1761227463747,4.50513804,191.41,191.26,2.63]
[1761227463952,2.58,191.4,191.27,4.65448208]
[1761227464149,4.50513804,191.37,191.19,4.50513804]
[1761227464348,4.50513804,191.37,191.12,30.17694968]
[1761227464349,2.58,191.36,191.22,2.63]
[1761227464553,2.58,191.32,191.18,2.63]
[1761227464756,2.58,191.3,191.19,7.29016333]
[1761227464954,2.58,191.3,191.2,4.66016333]
[1761227465250,45.4,191.31,191.22,2.63]
[1761227465452,45.4,191.31,191.18,4.50513804]
[1761227465453,45.4,191.31,191.23,4.66126397]
[1761227465646,45.4,191.31,191.24,7.29126397]
[1761227465843,45.4,191.31,191.25,4.66126397]
[1761227466045,2.58,191.3,191.22,4.7057]
[1761227466356,2.58,191.3,191.23,4.66040342]
[1761227466551,2.58,191.3,191.2,7.336]
[1761227466751,2.58,191.3,191.21,4.66293181]
[1761227466948,2.58,191.3,191.15,2.63]
[1761227467151,2.58,191.3,191.17,4.7069]
[1761227467349,2.58,191.3,191.18,4.66467395]
[1761227467555,2.58,191.3,191.19,4.66628752]
[1761227467856,2.58,191.3,191.17,2.63]
[1761227468158,2.58,191.3,191.18,4.66622872]
[1761227468355,2.58,191.3,191.17,2.63]
[1761227468656,2.58,191.3,191.15,2.63]
[1761227468852,4.50513804,191.27,191.16,4.66841521]
[1761227469050,2.58,191.26,191.12,2.63]
[1761227469253,2.58,191.26,191.13,4.66996252]
[1761227469553,2.58,191.26,191.14,4.66996252]
[1761227469856,2.58,191.26,191.12,2.63]
[1761227470056,2.58,191.26,191.13,4.66990879]
[1761227470259,2.58,191.26,191.14,4.66990879]
[1761227470463,2.58,191.26,191.12,2.63]
[1761227470664,2.58,191.24,191.13,4.66948349]
[1761227470861,47.98,191.23,191.14,4.66948349]
[1761227471163,47.98,191.23,191.12,7.3381]
[1761227471362,47.98,191.23,191.13,4.66970514]
[1761227471564,47.98,191.23,191.14,4.66970514]
[1761227471766,2.58,191.22,191.12,7.3381]
[1761227472059,2.58,191.22,191.13,4.67030515]
[1761227472364,2.58,191.2,191.08,2.63]
[1761227472666,2.58,191.18,191.09,4.67344964]
[1761227472864,2.58,191.18,191.08,2.63]
[1761227473065,2.58,191.18,191.09,4.67467812]
[1761227473359,2.58,191.18,191.07,106.1806791]
[1761227473559,2.58,191.18,191.08,4.67454519]
[1761227473862,2.58,191.18,191.07,106.1806791]
[1761227474061,2.58,191.18,191.08,4.67454879]
[1761227474258,2.58,191.18,191.07,106.1806791]
[1761227474463,2.58,191.18,191.08,7.30336568]
[1761227474664,2.58,191.18,191.08,2.63]
[1761227474964,2.58,191.18,191.07,106.1806791]
[1761227475156,2.58,191.18,191.08,4.67311573]
[1761227475357,2.58,191.18,191.07,106.1806791]
[1761227475557,2.58,191.18,191.08,4.67172777]
[1761227475769,2.58,191.18,191.07,106.1806791]
[1761227475965,2.58,191.18,191.08,4.67172839]
[1761227476162,2.58,191.18,191.07,106.1806791]
[1761227476364,2.58,191.18,191.08,4.67172839]
[1761227476559,25.06465883,191.29,191.09,2.63]
[1761227476560,2.58,191.28,191.09,2.63]
[1761227476762,2.58,191.26,191.12,4.50513804]
[1761227477064,2.58,191.26,191.14,2.63]
[1761227482565,2.58,191.29,191.16,2.63]
[1761227482771,2.58,191.29,191.19,2.63]
[1761227482973,45.38,191.28,191.19,2.63]
[1761227483470,45.38,191.28,191.21,2.63]
[1761227484560,2.58,191.27,191.17,4.50513804]
[1761227484761,45.38,191.28,191.12,2.63]
[1761227484762,2.58,191.23,191.12,2.63]
[1761227484968,7.08513804,191.2,191.13,4.66629507]
[1761227485183,7.08513804,191.2,191.12,2.63]
[1761227485184,45.38,191.19,191.12,2.63]
[1761227486175,48.04,191.19,191.08,2.65]
[1761227486366,2.66,191.18,191.09,7.31882026]
[1761227486570,2.66,191.15,191.04,2.65]
[1761227486765,2.66,191.15,191.06,2.65]
[1761227486967,2.66,191.15,191.07,7.3186403]
[1761227487165,2.66,191.15,191.08,4.6686403]
[1761227487367,2.66,191.15,191.07,2.65]
[1761227487569,4.50513804,191.12,191.02,2.65]
[1761227487770,4.50513804,191.12,191.03,4.66943875]
[1761227487771,45.38,191.11,191.03,4.66943875]
[1761227487971,45.38,191.11,191.04,4.66943875]
[1761227488170,45.38,191.11,191.02,2.65]
[1761227488370,45.38,191.11,191.03,4.6704351]
[1761227488573,45.38,191.11,191.04,4.6704351]
[1761227488768,45.38,191.11,191.02,2.65]
[1761227488968,48.05,191.11,191.03,4.66808105]
[1761227489167,48.05,191.11,191.02,2.65]
[1761227489367,48.05,191.11,191.03,4.6679511]
[1761227489575,48.05,191.11,191.02,2.65]
[1761227489769,45.38,191.11,191.02,2.65]
[1761227489974,2.67,191.1,191.02,2.65]
[1761227490177,2.67,191.1,190.95,2.85]
[1761227490373,2.67,191.1,190.97,2.85]
[1761227490676,2.67,191.1,190.99,2.85]
[1761227491079,2.67,191.1,191.0,7.51532809]
[1761227491374,45.38,191.11,191.0,2.85]
[1761227491976,48.05,191.11,191.0,2.85]
[1761227493070,2.67,191.1,191.0,2.85]
[1761227498380,2.67,191.05,190.93,2.85]
[1761227498674,48.03,191.04,190.94,2.85]
[1761227499276,45.36,191.04,190.94,2.85]
[1761227499576,45.36,191.04,190.96,2.85]
[1761227499967,49.86513804,191.04,190.96,2.85]
[1761227500276,49.86513804,191.04,190.85,66.50513804]
[1761227500277,2.67,191.03,190.86,2.85]
[1761227500480,2.67,191.03,190.88,2.85]
[1761227500669,2.67,191.03,190.9,2.85]
[1761227500869,2.67,191.03,190.91,7.50432894]
[1761227501070,2.67,191.03,190.91,2.85]
[1761227501272,45.36,191.04,190.91,2.85]
[1761227501468,45.36,191.04,190.93,2.85]
[1761227501778,45.36,191.04,190.95,2.85]
[1761227503473,2.67,191.03,190.95,2.85]
[1761227503677,45.36,191.04,190.95,2.85]
[1761227503872,45.36,191.04,190.97,2.85]
[1761227505277,48.03,191.04,190.91,2.85]
[1761227505476,48.03,191.04,190.9,4.50513804]
[1761227505477,48.03,191.04,190.93,2.85]
[1761227505676,2.67,191.03,190.94,4.65813475]
[1761227505873,2.67,191.03,190.93,2.85]
[1761227506181,2.67,191.03,190.94,4.65897211]
[1761227506480,2.67,191.03,190.95,4.66448182]
[1761227506682,2.67,191.03,190.94,2.85]
[1761227506882,2.67,191.03,190.95,4.66364918]
[1761227507076,2.67,191.03,190.94,2.85]
[1761227507381,4.50513804,191.01,190.95,4.66903285]
[1761227507680,4.50513804,191.01,190.94,2.85]
[1761227507877,4.50513804,191.01,190.86,2.85]
[1761227508184,4.50513804,190.98,190.88,2.85]
[1761227508374,45.36,190.97,190.89,4.66868686]
[1761227508574,45.36,190.97,190.9,4.67356764]
[1761227508881,45.36,190.97,190.91,4.67356764]
[1761227509178,45.36,190.97,190.88,2.85]
[1761227509179,45.36,190.97,190.92,7.52356764]
[1761227509375,48.03,190.97,190.93,4.67356764]
[1761227509579,2.67,190.96,190.94,4.67356764]
[1761227509783,45.36,190.97,190.87,2.85]
[1761227509978,45.36,190.97,190.89,2.85]
[1761227510174,45.36,190.97,190.9,4.67396082]
[1761227510481,45.36,190.97,190.91,4.67396082]
[1761227510677,48.03,190.97,190.92,4.67396082]
[1761227510876,48.03,190.97,190.93,4.67396082]
[1761227511076,48.03,190.97,190.89,2.85]
[1761227511077,48.03,190.97,190.94,4.67396082]
[1761227511277,48.03,190.97,190.89,2.85]
[1761227511475,48.03,190.97,190.9,4.6755775]
[1761227511681,4.50513804,190.95,190.91,4.6755775]
[1761227511883,2.67,190.94,190.84,2.85]
[1761227512186,2.67,190.94,190.85,7.52862574]
[1761227512380,2.67,190.94,190.86,4.67862574]
[1761227512579,2.67,190.94,190.87,4.67862574]
[1761227512777,2.67,190.94,190.88,4.67862574]
[1761227512977,2.67,190.94,190.89,4.67862574]
[1761227513179,2.67,190.94,190.9,4.67862574]
[1761227513381,2.67,190.94,190.85,2.85]
[1761227513580,2.67,190.94,190.86,4.67670326]
[1761227513783,2.67,190.94,190.87,4.67670326]
[1761227513982,2.67,190.94,190.88,4.67670326]
[1761227514189,2.67,190.94,190.89,4.67670326]
[1761227514486,2.67,190.94,190.9,4.67670326]
[1761227514688,2.67,190.94,190.85,2.85]
[1761227514885,2.67,190.94,190.86,4.6756805]
[1761227515186,2.67,190.94,190.87,4.6756805]
[1761227515390,2.67,190.94,190.88,4.6756805]
[1761227515592,2.67,190.94,190.89,4.6756805]
[1761227515783,2.67,190.94,190.85,2.85]
[1761227515984,2.67,190.94,190.86,4.67508109]
[1761227516289,2.67,190.91,190.87,4.67508109]
[1761227516484,2.67,190.89,190.8,2.85]
[1761227516678,2.67,190.89,190.81,4.67588381]
[1761227516883,2.67,190.89,190.82,7.52588381]
[1761227517084,45.36,190.9,190.84,2.85]
[1761227517392,45.36,190.91,190.86,2.85]
[1761227517585,45.36,190.91,190.88,2.85]
[1761227517782,45.36,190.91,190.89,4.67588381]
[1761227517986,45.36,190.91,190.86,2.85]
[1761227518187,45.36,190.91,190.88,2.85]
[1761227518495,45.36,190.91,190.89,4.67191865]
[1761227518688,45.36,190.91,190.84,2.85]
[1761227518884,45.36,190.91,190.85,7.40103157]
[1761227519086,45.36,190.91,190.87,2.73]
[1761227519291,45.36,190.91,190.88,7.40103157]
[1761227519593,45.36,190.91,190.9,2.73]
[1761227519789,45.36,190.91,190.83,2.73]
[1761227519993,45.36,190.91,190.85,2.73]
[1761227520188,45.36,190.91,190.87,2.73]
[1761227520389,2.63,190.97,190.89,2.73]
[1761227520600,36.73,190.97,190.9,7.39992011]
[1761227520798,2.63,190.96,190.91,4.66992011]
[1761227520997,2.63,190.96,190.86,2.73]
[1761227521190,2.63,190.96,190.87,4.668641]
[1761227521389,2.63,190.96,190.88,4.668641]
[1761227521589,2.63,190.96,190.89,4.668641]
[1761227521789,2.63,190.96,190.86,2.73]
[1761227521995,2.63,190.96,190.87,4.67197056]
[1761227522197,2.63,190.96,190.82,2.73]
[1761227522396,2.63,190.96,190.83,7.40144035]
[1761227522597,2.63,190.96,190.84,4.67144035]
[1761227522791,2.63,190.96,190.85,4.67144035]
[1761227522995,2.63,190.96,190.86,4.67144035]
[1761227523295,2.63,190.96,190.87,4.67249402]
[1761227523494,2.63,190.96,190.83,2.73]
[1761227523691,2.63,190.96,190.84,4.67335191]
[1761227523891,2.63,190.96,190.85,4.67335191]
[1761227524092,2.63,190.96,190.86,4.67335191]
[1761227524298,2.63,190.96,190.84,2.73]
[1761227524499,2.63,190.96,190.85,4.6773634]
[1761227524694,2.63,190.96,190.86,4.6773634]
[1761227524999,2.63,190.96,190.84,2.73]
[1761227525197,2.63,190.96,190.85,4.67832916]
[1761227525393,2.63,190.96,190.8,2.73]
[1761227525596,2.63,190.96,190.81,4.67837847]
[1761227525597,2.63,190.92,190.81,4.67837847]
[1761227525792,2.63,190.92,190.82,4.67837847]
[1761227525993,2.63,190.92,190.8,2.73]
[1761227526194,2.63,190.92,190.81,4.6795895]
[1761227526400,2.63,190.92,190.82,4.6795895]
[1761227526593,2.63,190.92,190.8,2.73]
[1761227526794,2.63,190.92,190.81,4.68086733]
[1761227527001,2.63,190.92,190.7,15.68747901]
[1761227527002,2.63,190.88,190.76,2.73]
[1761227527303,47.97,190.87,190.77,7.41212996]
[1761227527602,47.97,190.87,190.78,4.68212996]
[1761227527803,47.97,190.87,190.79,4.68212996]
[1761227528004,47.97,190.87,190.8,4.68212996]
[1761227528203,47.97,190.87,190.7,7.45137986]
[1761227528204,2.63,190.86,190.75,2.73]
[1761227528406,2.63,190.86,190.76,4.68227927]
[1761227528598,2.63,190.86,190.77,4.68227927]
[1761227528904,45.34,190.87,190.79,2.73]
[1761227529207,2.63,190.86,190.8,4.68227927]
[1761227529401,2.63,190.86,190.81,4.69149157]
[1761227529605,2.63,190.86,190.75,2.73]
[1761227529797,2.63,190.86,190.76,4.69262837]
[1761227529998,2.63,190.86,190.77,4.69262837]
[1761227530200,2.63,190.86,190.78,4.69262837]
[1761227530506,2.63,190.86,190.79,4.69262837]
[1761227530800,2.63,190.86,190.8,4.69325569]
[1761227531103,2.63,190.86,190.78,2.73]
[1761227531305,2.63,190.86,190.79,4.69669276]
[1761227531504,2.63,190.86,190.78,2.73]
[1761227531702,2.63,190.86,190.74,2.73]
[1761227531904,2.63,190.84,190.75,4.69866499]
[1761227532103,2.63,190.84,190.69,2.73]
[1761227532410,2.63,190.8,190.7,4.70128645]
[1761227532602,2.63,190.78,190.71,4.70128645]
[1761227532802,2.63,190.78,190.72,4.70128645]
[1761227532997,2.63,190.78,190.73,4.70128645]
[1761227533201,2.63,190.78,190.66,2.73]
[1761227533506,2.63,190.76,190.67,7.42625289]
[1761227533700,2.63,190.76,190.68,4.69625289]
[1761227533908,2.63,190.76,190.69,4.69625289]
[1761227534202,2.63,190.76,190.67,2.73]
[1761227534405,2.63,190.76,190.68,4.69405637]
[1761227534606,2.63,190.76,190.67,2.73]
[1761227535007,2.63,190.76,190.68,4.69493489]
[1761227535207,2.63,190.76,190.62,2.73]
[1761227535409,2.63,190.76,190.64,2.73]
[1761227535606,2.63,190.76,190.65,4.69084238]
[1761227535905,2.63,190.76,190.66,4.69084238]
[1761227536109,2.63,190.76,190.67,4.69084238]
[1761227536406,2.63,190.76,190.64,2.73]
[1761227536602,2.63,190.76,190.65,4.68854671]
[1761227536797,2.63,190.76,190.66,4.68854671]
[1761227537003,2.63,190.76,190.64,2.73]
[1761227537004,2.63,190.76,190.67,4.68854671]
[1761227537204,2.63,190.76,190.64,2.73]
[1761227537408,2.63,190.76,190.65,4.68495895]
[1761227537597,2.63,190.76,190.64,2.73]
[1761227537598,2.63,190.76,190.66,4.68495895]
[1761227537801,2.63,190.76,190.64,2.73]
[1761227538107,2.63,190.76,190.65,4.68579976]
[1761227538311,2.63,190.72,190.59,2.73]
[1761227538509,2.63,190.72,190.6,4.68487878]
[1761227538707,2.63,190.72,190.61,4.68487878]
[1761227538907,2.63,190.72,190.62,4.68487878]
[1761227539110,2.63,190.72,190.63,4.68487878]
[1761227539306,2.63,190.72,190.6,2.73]
[1761227539503,2.63,190.72,190.61,4.68299095]
[1761227539710,2.63,190.72,190.62,4.68299095]
[1761227539904,2.63,190.72,190.6,2.73]
[1761227540214,2.63,190.72,190.61,4.68456392]
[1761227540410,2.63,190.72,190.6,2.73]
[1761227540609,2.63,190.72,190.62,2.73]
[1761227540809,2.63,190.72,190.63,7.41078669]
[1761227541017,45.34,190.71,190.63,2.73]
[1761227541210,2.63,190.72,190.63,2.73]
[1761227541420,45.34,190.71,190.64,4.67529488]
[1761227541605,47.97,190.71,190.63,2.73]
[1761227542909,47.97,190.71,190.64,4.67556659]
[1761227543110,45.34,190.71,190.63,2.73]
[1761227543312,45.34,190.71,190.65,2.73]
[1761227544513,45.34,190.71,190.66,4.67114493]
[1761227544817,45.34,190.71,190.67,2.73]
[1761227546020,45.34,190.71,190.69,2.61]
[1761227546920,42.47,190.71,190.7,4.66916062]
[1761227547114,45.32,190.78,190.7,4.66916062]
[1761227547418,45.32,190.78,190.64,7.45137986]
[1761227547618,47.97,190.78,190.67,4.7192]
[1761227547920,45.32,190.78,190.68,4.66973245]
[1761227548223,45.32,190.78,190.7,4.7183]
[1761227548625,2.65,190.77,190.56,25.85783445]
[1761227548928,2.65,190.77,190.57,66.67361744]
[1761227549114,2.82,190.74,190.6,4.7209]
[1761227549310,2.82,190.74,190.61,4.67361744]
[1761227549517,2.82,190.74,190.62,4.67361744]
[1761227549716,2.82,190.74,190.63,4.67361744]
[1761227549924,2.82,190.74,190.64,4.67361744]
[1761227550120,2.82,190.74,190.65,4.67361744]
[1761227550320,2.82,190.74,190.66,4.67361744]
[1761227550512,2.82,190.74,190.6,4.7209]
[1761227550819,2.82,190.74,190.61,4.67923932]
[1761227551121,2.82,190.74,190.62,4.67923932]
[1761227551323,2.82,190.74,190.63,4.67923932]
[1761227551524,2.82,190.74,190.64,4.67923932]
[1761227551719,2.82,190.74,190.57,62.0]
[1761227551925,2.82,190.74,190.58,4.6803563]
[1761227552127,2.82,190.74,190.59,4.6803563]
[1761227552422,2.82,190.74,190.6,4.6803563]
[1761227552621,2.82,190.74,190.61,4.6803563]
[1761227552825,2.82,190.74,190.62,4.6803563]
[1761227552826,2.82,190.73,190.62,4.6803563]
[1761227553026,2.82,190.73,190.53,0.91297846]
[1761227553226,2.82,190.73,190.54,4.68259948]
[1761227553525,2.82,190.73,190.53,0.91297846]
[1761227553526,2.82,190.73,190.55,4.68259948]
[1761227553725,2.82,190.73,190.57,4.7216]
[1761227553927,2.82,190.73,190.58,4.68259948]
[1761227554227,2.82,190.7,190.59,4.68259948]
[1761227554418,2.82,190.68,190.6,4.68259948]
[1761227554620,2.82,190.68,190.61,4.68259948]
[1761227554816,2.82,190.68,190.62,4.68259948]
[1761227555019,2.82,190.68,190.56,4.7218]
[1761227555227,2.82,190.68,190.57,4.68498418]
[1761227555426,2.82,190.68,190.58,4.68498418]
[1761227555627,2.82,190.68,190.59,4.68498418]
[1761227555829,2.82,190.68,190.6,4.68498418]